fUSD/lending_fUSD_20250207
["ID","MTS","AMOUNT","RATE_DAILY","PERIOD"]
[352063155,1738918645110,4019.2504,8.973e-05,2]
[352063267,1738919431852,-256.23,0.00010137,2]
[352063268,1738919431861,-168.4,0.00013028,2]
[352063269,1738919431871,-150.0,0.00013786,2]
[352063270,1738919431881,-268.82,0.00014576,2]
[352063271,1738919431890,-500.0,0.00016034,2]
[352063272,1738919431900,-500.0,0.00016034,2]
[352063273,1738919431910,-215.13948376,0.00016111,2]
[352063274,1738919431922,-449.41051624,0.00016211,2]
[352063275,1738919431934,-104.51948376,0.00016211,2]
[352063276,1738919431943,-705.44369624,0.00016299,2]
[352063277,1738919431955,-2067.78630376,0.00016299,2]
[352063278,1738919431964,-382.21369824,0.00016337,2]
[352063279,1738919431983,-782.94,0.00016337,2]
[352063280,1738919431995,-102.02630176,0.00016337,2]
[352063281,1738919432004,-368.64,0.00016344,2]
[352063282,1738919432014,-249.66369824,0.00016347,2]
[352063283,1738919432025,-3.33630176,0.00016347,2]
[352063284,1738919432035,-382.16,0.00016348,2]
[352063285,1738919432044,-206.33867864,0.00016352,2]
[352063286,1738919432056,-463.14132136,0.00016352,2]
[352063287,1738919432066,-380.35,0.00016353,2]
[352063288,1738919432076,-372.13,0.00016362,2]
[352063289,1738919432086,-170.39,0.00016366,2]
[352063290,1738919432095,-532.23867864,0.00016368,2]
[352063291,1738919432117,-317.69470322,0.00016368,2]
[352063292,1738919432276,-2648.14661814,0.00016368,2]
[352063293,1738919432285,-374.0,0.00016376,2]
[352063294,1738919432295,-849.44,0.00016396,2]
[352063295,1738919432305,-541.48,0.00016396,2]
[352063296,1738919432314,-374.88,0.00016397,2]
[352063297,1738919432324,-200.0,0.00016415,2]
[352063299,1738919432333,-380.44,0.00016438,2]
[352063301,1738919432342,-378.77,0.00016438,2]
[352063303,1738919432351,-377.99,0.00016438,2]
[352063305,1738919432361,-368.33,0.00016438,2]
[352063307,1738919432370,-373.59,0.00016438,2]
[352063308,1738919432379,-375.0,0.00016438,2]
[352063309,1738919432389,-379.42,0.00016438,2]
[352063310,1738919432398,-376.91,0.00016439,2]
[352063311,1738919432407,-282.13403459,0.00016439,2]
[352063312,1738919432419,-92.91596541,0.00016439,2]
[352063313,1738919432428,-372.55,0.0001644,2]
[352063314,1738919432438,-374.75,0.00016441,2]
[352063315,1738919432447,-374.46,0.00016444,2]
[352063316,1738919432457,-1394.68,0.00016447,2]
[352063317,1738919432468,-380.82,0.00016448,2]
[352063318,1738919432478,-500.0,0.0001645,2]
[352063319,1738919432487,-1000.0,0.00016452,2]
[352063320,1738919432496,-575.85,0.00016454,2]
[352063321,1738919432505,-372.14,0.00016457,2]
[352063322,1738919432515,-376.9,0.00016473,2]
[352063323,1738919432524,-379.49,0.00016488,2]
[352063324,1738919432534,-1852.42,0.00016489,2]
[352063325,1738919432543,-3249.42849995,0.00016504,2]
[352063513,1738919439991,-20650.57150005,0.00016504,2]
[352063515,1738919440002,-372.05,0.00016508,2]
[352063517,1738919440011,-376.61,0.00016508,2]
[352063519,1738919440020,-372.57,0.00016508,2]
[352063521,1738919440031,-378.72,0.00016508,2]
[352063523,1738919440040,-500.0,0.00016508,2]
[352063525,1738919440050,-198.03,0.00016658,30]
[352063527,1738919440059,-268.82,0.0001684,2]
[352063529,1738919440069,-215.13948375,0.00016976,2]
[352063531,1738919440078,-1000.0,0.00016998,2]
[352063533,1738919440087,-179.482,0.00017117,2]
[352063535,1738919440097,-2800.692,0.00017117,2]
[352063537,1738919440106,-215.13948375,0.00017841,2]
[352063539,1738919440115,-449.9,0.00017941,2]
[352063541,1738919440125,-596.01,0.00017941,2]
[352063543,1738919440136,-13392.6540625,0.00018,7]
[352063545,1738919440146,-200.0,0.00018082,2]
[352063547,1738919440156,-218.62438582,0.00018137,2]
[352063549,1738919440167,-1229.609,0.000182,3]
[352063550,1738919440177,-218.62438582,0.00018219,2]
[352063552,1738919440186,-553.93,0.00018237,2]
[352063554,1738919440195,-218.62438582,0.00018301,2]
[352063556,1738919440205,-379.54,0.00018365,2]
[352063558,1738919440216,-20000.0,0.00018372,5]
[352063560,1738919440225,-431.40086281,0.000184,2]
[352063562,1738919440235,-200.0,0.000184,6]
[352063564,1738919440244,-218.62438582,0.00018411,2]
[352063566,1738919440254,-218.62438582,0.00018493,2]
[352063568,1738919440263,-500.0,0.000185,6]
[352063570,1738919440272,-1000.0,0.00018509,2]
[352063572,1738919440281,-500.0,0.00018549,2]
[352063574,1738919440291,-2000.0,0.0001855,2]
[352063576,1738919440301,-500.0,0.0001855,2]
[352063578,1738919440311,-218.62438582,0.00018575,2]
[352063580,1738919440321,-542.758,0.00018596,2]
[352063582,1738919440330,-800.0,0.000186,6]
[352063584,1738919440340,-157.34143773,0.00018601,2]
[352063586,1738919440349,-172.71635806,0.0001861,2]
[352063588,1738919440358,-218.62438582,0.00018658,2]
[352063590,1738919440368,-542.758,0.00018663,2]
[352063592,1738919440377,-151.31608496,0.00018673,2]
[352063594,1738919440386,-160.4478376,0.00018673,2]
[352063596,1738919440395,-152.53531053,0.00018673,2]
[352063598,1738919440405,-703188.64012987,0.00018694,3]
[352063600,1738919440416,-119774.93347008,0.00018694,3]
[352063603,1738919440429,-6845.66399992,0.00018694,3]
[352063605,1738919440440,-467.4210005,0.00018694,3]
[352063607,1738919440452,-978.3845048,0.00018694,3]
[352063609,1738919440462,-836.50226149,0.00018694,3]
[352063889,1738919445851,-281.84799999,0.00017434,2]
[352063890,1738919445956,-1404.53200001,0.00017434,2]
[352063891,1738919445966,-599372.55632969,0.00018694,3]
[352063892,1738919446010,-6732.88527194,0.00018694,3]
[352063893,1738919446064,-2866.43,0.00018694,3]
[352063894,1738919446119,-311.13376032,0.00018694,3]
[352063895,1738919446173,-17173.24605598,0.00018694,3]
[352063898,1738919446186,-2370.0,0.00018694,3]
[352064374,1738920319965,7256.10380635,9e-05,2]
[352064375,1738920374433,207.71601917,0.0002,120]
[352064380,1738920391815,283.25,0.00010137,2]
[352064398,1738920449750,5863.68336452,0.0002,120]
[352064404,1738920537663,-168.4,0.00013608,2]
[352064424,1738920632199,-241.93,0.00015766,2]
[352064425,1738920632209,-150.0,0.00016007,2]
[352064426,1738920632218,-332.35,0.00016622,2]
[352064427,1738920632228,-163.80223866,0.00016622,2]
[352064428,1738920632360,-1278.89999998,0.00016622,2]
[352064429,1738920632418,-255.77,0.00016622,2]
[352065004,1738920640299,-19.86776136,0.00016622,2]
[352065005,1738920640310,-1000.0,0.00016645,2]
[352065006,1738920640320,-1289.06663194,0.00016706,2]
[352065007,1738920640460,-563.35336806,0.00016706,2]
[352065008,1738920640470,-283.25,0.00016813,2]
[352065009,1738920640479,-619.82836257,0.00016996,2]
[352065198,1738920646329,-288.63163743,0.00016996,2]
[352065199,1738920646340,-150.0,0.00017343,2]
[352065200,1738920646350,-41.54405698,0.00017491,2]
[352065201,1738920646363,-109.69594302,0.00017491,2]
[352065202,1738920646372,-151.24,0.00017497,2]
[352065203,1738920646383,-151.24,0.00017503,2]
[352065204,1738920646393,-151.24,0.00017509,2]
[352065205,1738920646411,-151.24,0.00017515,2]
[352065206,1738920646428,-94.40209098,0.0001752,2]
[352065207,1738920646488,-56.83790902,0.0001752,2]
[352065208,1738920646534,-151.24,0.00017526,2]
[352065210,1738920646635,-151.24,0.00017532,2]
[352065212,1738920646718,-151.24,0.00017538,2]
[352065213,1738920646848,-151.24,0.00017544,2]
[352065214,1738920646970,-101.07812277,0.0001755,2]
[352065221,1738920934799,4857.571,8.699e-05,2]
[352065222,1738921060285,2500.0,8.851e-05,2]
[352065223,1738921075984,4364.4607,8.973e-05,2]
[352065225,1738921248812,161.25,0.00010137,2]
[352065226,1738921348393,-283.41,0.00015231,2]
[352065227,1738921348415,-150.0,0.00016187,2]
[352065228,1738921348436,-150.0,0.00016754,2]
[352065229,1738921348458,-500.0,0.00016754,2]
[352065230,1738921348480,-262.18,0.00016857,2]
[352065231,1738921348500,-169.61,0.00016876,2]
[352065232,1738921348522,-150.0,0.00016883,2]
[352065233,1738921348544,-695.09,0.00016937,2]
[352065234,1738921348565,-3174.46,0.00017142,2]
[352065235,1738921348586,-188.12,0.00017247,30]
[352065236,1738921348608,-1077.0,0.000173,2]
[352065237,1738921348630,-283.41,0.00017495,2]
[352065238,1738921348650,-431.40086281,0.00017498,2]
[352065239,1738921348672,-50.16187723,0.0001755,2]
[352065240,1738921348693,-151.24,0.00017555,2]
[352065241,1738921348715,-151.24,0.00017561,2]
[352065242,1738921348736,-151.24,0.00017567,2]
[352065243,1738921348760,-4000.0,0.0001757,2]
[352065244,1738921348805,-151.24,0.00017573,2]
[352065245,1738921348849,-151.24,0.00017579,2]
[352065246,1738921348897,-758.77,0.00017742,2]
[352065247,1738921348943,-434.2064,0.00017799,2]
[352065248,1738921348981,-4000.0,0.0001781,2]
[352065249,1738921349001,-150.0,0.00017897,2]
[352065250,1738921349022,-798.97518062,0.00017898,3]
[352065251,1738921349043,-1899.59999999,0.00017898,5]
[352065252,1738921349065,-500.0,0.00017898,2]
[352065253,1738921349088,-500.0,0.00017898,2]
[352065254,1738921349110,-500.0,0.00017898,2]
[352065255,1738921349130,-275.10618077,0.00017898,2]
[352065256,1738921349152,-500.0,0.00017898,2]
[352065257,1738921349172,-500.0,0.00017898,2]
[352065258,1738921349193,-500.0,0.00017898,2]
[352065259,1738921349214,-500.0,0.00017898,2]
[352065260,1738921349235,-500.0,0.00017898,2]
[352065261,1738921349256,-500.0,0.00017898,2]
[352065262,1738921349277,-500.0,0.00017898,2]
[352065263,1738921349298,-500.0,0.00017898,2]
[352065264,1738921349318,-500.0,0.00017898,2]
[352065265,1738921349339,-500.0,0.00017898,2]
[352065266,1738921349360,-500.0,0.00017898,2]
[352065267,1738921349381,-500.0,0.00017898,2]
[352065268,1738921349401,-500.0,0.00017898,2]
[352065269,1738921349430,-500.0,0.00017898,2]
[352065270,1738921349457,-500.0,0.00017898,2]
[352065271,1738921349482,-500.0,0.00017898,2]
[352065272,1738921349508,-500.0,0.00017898,2]
[352065273,1738921349534,-500.0,0.00017898,2]
[352065274,1738921349572,-500.0,0.00017898,2]
[352065275,1738921349605,-500.0,0.00017898,2]
[352065276,1738921349637,-500.0,0.00017898,2]
[352065277,1738921349661,-500.0,0.00017898,2]
[352065278,1738921349692,-500.0,0.00017898,2]
[352065279,1738921349719,-500.0,0.00017898,2]
[352065280,1738921349748,-500.0,0.00017898,2]
[352065281,1738921349777,-500.0,0.00017898,2]
[352065282,1738921349805,-500.0,0.00017898,2]
[352065283,1738921349833,-505.63498316,0.00017898,2]
[352065284,1738921349859,-500.0,0.00017898,2]
[352065285,1738921349889,-500.0,0.00017898,2]
[352065286,1738921349916,-500.0,0.00017898,2]
[352065287,1738921349943,-500.0,0.00017898,2]
[352065288,1738921349969,-500.0,0.00017898,2]
[352065289,1738921349999,-500.0,0.00017898,2]
[352065290,1738921350027,-500.0,0.00017898,2]
[352065291,1738921350055,-500.0,0.00017898,2]
[352065292,1738921350079,-500.0,0.00017898,2]
[352065293,1738921350108,-500.0,0.00017898,2]
[352065294,1738921350138,-500.0,0.00017898,2]
[352065295,1738921350163,-561.57,0.00017898,2]
[352065296,1738921350188,-500.0,0.00017898,2]
[352065297,1738921350212,-500.0,0.00017898,2]
[352065298,1738921350240,-500.0,0.00017898,2]
[352065299,1738921350269,-625.0,0.00017898,2]
[352065300,1738921350295,-500.0,0.00017898,2]
[352065301,1738921350320,-500.0,0.00017898,2]
[352065302,1738921350346,-612.38,0.00017898,2]
[352065303,1738921350375,-500.0,0.00017898,2]
[352065304,1738921350402,-500.0,0.00017898,2]
[352065305,1738921350430,-500.0,0.00017898,2]
[352065306,1738921350456,-616.59,0.00017898,2]
[352065307,1738921350485,-171.16,0.00017898,2]
[352065308,1738921350511,-509.59,0.00017898,2]
[352065309,1738921350535,-500.0,0.00017898,2]
[352065310,1738921350561,-500.0,0.00017898,2]
[352065311,1738921350584,-500.0,0.00017898,2]
[352065312,1738921350608,-500.0,0.00017898,2]
[352065313,1738921350633,-500.0,0.00017898,2]
[352065314,1738921350660,-500.0,0.00017898,2]
[352065315,1738921350685,-500.0,0.00017898,2]
[352065316,1738921350709,-518.85783118,0.00017898,2]
[352065317,1738921350734,-500.0,0.00017898,2]
[352065318,1738921350759,-527.59,0.00017898,2]
[352065319,1738921350782,-500.0,0.00017898,2]
[352065320,1738921350809,-591.32,0.00017898,2]
[352065321,1738921350838,-500.0,0.00017898,2]
[352065322,1738921350863,-500.0,0.00017898,2]
[352065323,1738921350891,-500.0,0.00017898,2]
[352065324,1738921350915,-500.0,0.00017898,2]
[352065325,1738921350941,-500.0,0.00017898,2]
[352065326,1738921350967,-500.0,0.00017898,2]
[352065327,1738921351136,-500.0,0.00017898,2]
[352065328,1738921351165,-500.0,0.00017898,2]
[352065329,1738921351186,-500.0,0.00017898,2]
[352065330,1738921351209,-500.0,0.00017898,2]
[352065331,1738921351233,-500.0,0.00017898,2]
[352065332,1738921351254,-500.0,0.00017898,2]
[352065333,1738921351277,-306.574254,0.00017898,2]
[352065334,1738921351299,-500.0,0.00017898,2]
[352065335,1738921351320,-500.0,0.00017898,2]
[352065336,1738921351342,-500.0,0.00017898,2]
[352065337,1738921351363,-500.0,0.00017898,2]
[352065338,1738921351384,-500.0,0.00017898,2]
[352065339,1738921351407,-500.0,0.00017898,2]
[352065340,1738921351428,-500.0,0.00017898,2]
[352065341,1738921351450,-500.0,0.00017898,2]
[352065342,1738921351470,-506.70233815,0.00017898,2]
[352065343,1738921351493,-500.0,0.00017898,2]
[352065344,1738921351515,-417073.97499209,0.00017898,3]
[352065353,1738921781314,16026.56200686,0.0002,120]
[352065356,1738921832540,-255.06,0.00015148,2]
[352065357,1738921832550,-150.0,0.00016125,2]
[352065358,1738921832559,-150.0,0.00016662,2]
[352065359,1738921832569,-150.0,0.00016763,2]
[352065360,1738921832578,-475.38577463,0.00017102,2]
[352065361,1738921832590,-568.74422537,0.00017102,2]
[352065363,1738921832600,-11475.41,0.00017127,2]
[352065365,1738921832610,-273.93,0.00017167,2]
[352065367,1738921832619,-1000.0,0.00017271,2]
[352065369,1738921832629,-250.0,0.00017304,2]
[352065371,1738921832638,-255.06,0.00017412,2]
[352065372,1738921832651,-500.0,0.000177,6]
[352065373,1738921832660,-176.44,0.00017781,2]
[352065374,1738921832671,-390.78576,0.00017797,2]
[352065375,1738921832681,-1100.0,0.000178,6]
[352065376,1738921832690,-618.91,0.00017896,2]
[352065377,1738921832699,-500.0,0.00017896,2]
[352065378,1738921832709,-500.0,0.00017896,2]
[352065379,1738921832718,-500.0,0.00017896,2]
[352065380,1738921832726,-602.95,0.00017896,2]
[352065381,1738921832736,-523.05,0.00017896,2]
[352065382,1738921832746,-500.0,0.00017896,2]
[352065383,1738921832756,-500.0,0.00017896,2]
[352065384,1738921832765,-500.0,0.00017896,2]
[352065386,1738921832774,-500.0,0.00017896,2]
[352065388,1738921832784,-500.0,0.00017896,2]
[352065389,1738921832793,-500.0,0.00017896,2]
[352065390,1738921832803,-500.0,0.00017896,2]
[352065391,1738921832812,-227.5,0.00017896,2]
[352065392,1738921832821,-402.86,0.00017896,2]
[352065393,1738921832831,-500.0,0.00017896,2]
[352065394,1738921832840,-500.0,0.00017896,2]
[352065395,1738921832850,-500.0,0.00017896,2]
[352065397,1738921832860,-500.0,0.00017896,2]
[352065399,1738921832869,-500.0,0.00017896,2]
[352065401,1738921832878,-500.0,0.00017896,2]
[352065403,1738921832888,-306.574254,0.00017896,2]
[352065405,1738921832899,-500.0,0.00017896,2]
[352065407,1738921832909,-500.0,0.00017896,2]
[352065409,1738921832918,-500.0,0.00017896,2]
[352065411,1738921832928,-399.48759031,0.00017897,3]
[352065412,1738921832937,-27035.74788597,0.00017897,3]
[352065415,1738921832951,-310.529994,0.00017897,3]
[352065431,1738921838379,-339.30327672,0.00017896,2]
[352065432,1738921838391,-160.69672328,0.00017896,2]
[352065433,1738921838401,-500.0,0.00017896,2]
[352065434,1738921838410,-500.0,0.00017896,2]
[352065435,1738921838420,-525.74367738,0.00017896,2]
[352065436,1738921838429,-500.0,0.00017896,2]
[352065437,1738921838439,-500.0,0.00017896,2]
[352065438,1738921838448,-5316.00145578,0.00017897,3]
[352065439,1738921838567,-4705.87331267,0.00017897,3]
[352065440,1738921838578,-19847.4,0.00017897,3]
[352065441,1738921838606,-828.31202798,0.00017897,3]
[352065442,1738921838617,-1948.8,0.00017897,3]
[352065443,1738921838628,-202855.32663045,0.00017897,3]
[352065444,1738921838663,-500.0,0.00017896,2]
[352065445,1738921838672,-182508.43257123,0.00017897,3]
[352065452,1738921840317,-4106.31258657,0.00017897,3]
[352065453,1738921840426,-3257.85459997,0.00017897,3]
[352065464,1738921843372,-500.0,0.00017896,2]
[352065465,1738921843383,-500.0,0.00017896,2]
[352065466,1738921843392,-7404.85245676,0.00017897,3]
[352065467,1738921843535,-563.3999988,0.00017897,3]
[352065468,1738921843546,-481.43349508,0.00017897,3]
[352065479,1738921846242,-1558.30887,0.00017897,3]
[352065480,1738921846253,-14631.3284,0.00017897,3]
[352065481,1738921846458,-434.760005,0.00017897,3]
[352065577,1738922008291,310.9611,8.973e-05,2]
[352065589,1738922810134,-284.49,0.00014918,2]
[352065590,1738922810155,-250.0,0.00016748,2]
[352065591,1738922810175,-150.0,0.00016886,2]
[352065592,1738922810195,-273.2,0.00016892,2]
[352065593,1738922810214,-150.0,0.00016936,2]
[352065594,1738922810367,-178.71,0.00016948,30]
[352065595,1738922810390,-3486.20633294,0.00016962,2]
[352065611,1738923031535,-196.03700973,0.00016871,2]
[352065612,1738923031545,-150.0,0.00016916,2]
[352065613,1738923031554,-464.0,0.00016927,2]
[352065614,1738923031563,-512.18328606,0.00016938,2]
[352065615,1738923031799,-987.81671394,0.00016938,2]
[352065616,1738923031809,-15157.27513027,0.00016962,2]
[352065617,1738923031821,-3083.90026072,0.00016962,2]
[352065628,1738923037461,-422.24827607,0.00016962,2]
[352065629,1738923037475,-500.0,0.00016971,2]
[352065630,1738923037485,-1000.0,0.00016979,2]
[352065631,1738923037495,-2292.13,0.00016991,2]
[352065632,1738923037504,-170.05,0.00017024,2]
[352065633,1738923037514,-320.7,0.0001707,2]
[352065634,1738923037523,-284.49,0.00017182,2]
[352065635,1738923037533,-1270.0,0.000176,2]
[352065636,1738923037542,-400.0,0.000177,6]
[352065637,1738923037551,-4000.0,0.0001772,2]
[352065638,1738923037560,-351.707184,0.00017797,2]
[352065639,1738923037569,-322.96236687,0.000178,2]
[352065640,1738923037578,-900.0,0.000178,6]
[352065641,1738923037588,-825.06538865,0.00017872,2]
[352065642,1738923037597,-179.482,0.00017895,2]
[352065643,1738923037606,-3540.149,0.00017895,2]
[352065644,1738923037615,-150.0,0.00017895,2]
[352065645,1738923037623,-500.0,0.00017896,2]
[352065646,1738923037632,-500.0,0.00017896,2]
[352065647,1738923037642,-500.0,0.00017896,2]
[352065648,1738923037651,-500.0,0.00017896,2]
[352065649,1738923037660,-500.0,0.00017896,2]
[352065650,1738923037669,-500.0,0.00017896,2]
[352065651,1738923037678,-219.47066662,0.00017896,2]
[352065652,1738923037691,-280.52933338,0.00017896,2]
[352065653,1738923037700,-500.0,0.00017896,2]
[352065654,1738923037709,-500.0,0.00017896,2]
[352065655,1738923037719,-500.0,0.00017896,2]
[352065656,1738923037727,-503.45,0.00017896,2]
[352065657,1738923037737,-500.0,0.00017896,2]
[352065658,1738923037746,-264.06250493,0.00017896,2]
[352065659,1738923037756,-235.93749507,0.00017896,2]
[352065660,1738923037766,-500.0,0.00017896,2]
[352065661,1738923037775,-406.17974536,0.00017896,2]
[352065662,1738923037801,-93.82025464,0.00017896,2]
[352065663,1738923037810,-174.23042751,0.00017896,2]
[352065679,1738923039431,-306.12989576,0.00017896,2]
[352065680,1738923039543,-19.63967673,0.00017896,2]
[352065681,1738923039552,-540.74,0.00017896,2]
[352065682,1738923039561,-336.58591122,0.00017896,2]
[352065683,1738923039583,-163.41408878,0.00017896,2]
[352065684,1738923039592,-104.13601196,0.00017896,2]
[352065685,1738923039611,-395.86398804,0.00017896,2]
[352065686,1738923039620,-407.49401196,0.00017896,2]
[352065687,1738923039631,-92.50598804,0.00017896,2]
[352065688,1738923039640,-500.0,0.00017896,2]
[352065689,1738923039650,-502.85241964,0.00017896,2]
[352065690,1738923039659,-500.0,0.00017896,2]
[352065691,1738923039668,-212.53982825,0.00017897,2]
[352065692,1738923039678,-8321.71543673,0.00017897,2]
[352065701,1738923042520,-1106.01859336,0.00017897,2]
[352065702,1738923042695,-18131.7,0.00017897,2]
[352065703,1738923042769,-9943.63578653,0.00017897,2]
[352065729,1738923045499,-308.25558615,0.00017897,2]
[352065730,1738923045556,-7522.18915123,0.00017897,2]
[352065731,1738923045568,-4909.1845893,0.00017897,2]
[352065732,1738923045632,-593.02499644,0.00017897,2]
[352065733,1738923045670,-60685.30091008,0.00017897,2]
[352065734,1738923045680,-500.0,0.00017897,2]
[352065735,1738923045690,-500.0,0.00017897,2]
[352065736,1738923045700,-601.31928465,0.00017897,2]
[352065737,1738923045709,-500.0,0.00017897,2]
[352065738,1738923045718,-500.0,0.00017897,2]
[352065739,1738923045728,-500.0,0.00017897,2]
[352065740,1738923045737,-500.0,0.00017897,2]
[352065741,1738923045747,-500.0,0.00017897,2]
[352065742,1738923045756,-507.07111301,0.00017897,2]
[352065743,1738923045765,-509.89479419,0.00017897,2]
[352065744,1738923045774,-500.0,0.00017897,2]
[352065745,1738923045783,-507.99461049,0.00017897,2]
[352065746,1738923045792,-500.0,0.00017897,2]
[352065747,1738923045801,-500.0,0.00017897,2]
[352065753,1738923045936,-500.0,0.00017897,2]
[352065754,1738923045945,-503.16866585,0.00017897,2]
[352065755,1738923045956,-500.0,0.00017897,2]
[352065756,1738923045965,-505.56750387,0.00017897,2]
[352065757,1738923045974,-510.93376044,0.00017897,2]
[352065758,1738923045983,-500.0,0.00017897,2]
[352065759,1738923045992,-500.0,0.00017897,2]
[352065760,1738923046001,-507.3543246,0.00017897,2]
[352065761,1738923046010,-500.0,0.00017897,2]
[352065762,1738923046019,-500.0,0.00017897,2]
[352065763,1738923046028,-500.0,0.00017897,2]
[352065764,1738923046038,-500.0,0.00017897,2]
[352065765,1738923046047,-475.18857891,0.00017897,2]
[352065766,1738923046056,-500.0,0.00017897,2]
[352065767,1738923046065,-500.0,0.00017897,2]
[352065768,1738923046074,-500.0,0.00017897,2]
[352065769,1738923046083,-500.0,0.00017897,2]
[352065770,1738923046092,-503.11435782,0.00017897,2]
[352065771,1738923046101,-508.58620469,0.00017897,2]
[352065772,1738923046110,-580.32,0.00017897,2]
[352065773,1738923046118,-500.0,0.00017897,2]
[352065774,1738923046127,-505.32404715,0.00017897,2]
[352065775,1738923046137,-500.0,0.00017897,2]
[352065776,1738923046145,-507.24469077,0.00017897,2]
[352065777,1738923046155,-500.0,0.00017897,2]
[352065778,1738923046164,-500.0,0.00017897,2]
[352065779,1738923046173,-500.0,0.00017897,2]
[352065780,1738923046182,-541.64,0.00017897,2]
[352065781,1738923046192,-500.0,0.00017897,2]
[352065782,1738923046202,-500.0,0.00017897,2]
[352065783,1738923046211,-500.0,0.00017897,2]
[352065784,1738923046220,-544.57,0.00017897,2]
[352065785,1738923046229,-497.16831442,0.00017897,2]
[352065786,1738923046238,-505.13806385,0.00017897,2]
[352065787,1738923046248,-646.45,0.00017897,2]
[352065788,1738923046257,-616.65,0.00017897,2]
[352065789,1738923046267,-500.0,0.00017897,2]
[352065790,1738923046276,-500.0,0.00017897,2]
[352065791,1738923046285,-500.0,0.00017897,2]
[352065792,1738923046294,-500.0,0.00017897,2]
[352065793,1738923046303,-233.2659319,0.00017897,2]
[352065794,1738923046313,-500.0,0.00017897,2]
[352065795,1738923046322,-500.0,0.00017897,2]
[352065796,1738923046331,-587.05,0.00017897,2]
[352065797,1738923046340,-500.0,0.00017897,2]
[352065798,1738923046349,-497.6851223,0.00017897,2]
[352065799,1738923046358,-500.0,0.00017897,2]
[352065800,1738923046367,-503.82641742,0.00017897,2]
[352065801,1738923046377,-500.0,0.00017897,2]
[352065802,1738923046387,-501.76693549,0.00017897,2]
[352065803,1738923046401,-500.0,0.00017897,2]
[352065804,1738923046411,-500.0,0.00017897,2]
[352065805,1738923046422,-500.0,0.00017897,2]
[352065806,1738923046432,-503.68277338,0.00017897,2]
[352065807,1738923046444,-500.0,0.00017897,2]
[352065808,1738923046462,-505.96579421,0.00017897,2]
[352065809,1738923046473,-500.0,0.00017897,2]
[352065810,1738923046483,-526.36,0.00017897,2]
[352065811,1738923046493,-500.0,0.00017897,2]
[352065812,1738923046503,-506.35466432,0.00017897,2]
[352065813,1738923046513,-500.0,0.00017897,2]
[352065814,1738923046522,-563.04,0.00017897,2]
[352065815,1738923046532,-503.55014086,0.00017897,2]
[352065816,1738923046541,-500.0,0.00017897,2]
[352065817,1738923046550,-504.57956533,0.00017897,2]
[352065818,1738923046560,-520.09266647,0.00017897,2]
[352065819,1738923046570,-500.0,0.00017897,2]
[352065820,1738923046579,-500.0,0.00017897,2]
[352065821,1738923046588,-500.0,0.00017897,2]
[352065822,1738923046599,-500.0,0.00017897,2]
[352065823,1738923046608,-500.0,0.00017897,2]
[352065824,1738923046616,-504.23670663,0.00017897,2]
[352065825,1738923046625,-505.25926768,0.00017897,2]
[352065826,1738923046635,-306.574254,0.00017898,2]
[352065827,1738923046643,-500.0,0.00017898,2]
[352065828,1738923046653,-500.0,0.00017898,2]
[352065829,1738923046662,-500.0,0.00017898,2]